{"text_format":"1","workbook":"xlsx","n_sheets":4,"sheets":["Overzicht contracten","Schema","Openstaande acties","Onderverdeling verpli, opt, rap"],"not_rendered":{"charts":0,"images":0,"macros":1,"external_links":0,"defined_names":1,"comments":0,"pivot_tables":0},"unopened":[],"bounds":{"document_bytes":16777216,"sheet_cells":100000,"rows_first":2000,"rows_last":500,"rows_between":2000,"halvings":0,"cell_chars":16384,"cell_head_chars":4096},"cells_cut":0,"cells_raw":0,"read":"whole","date_system":"1900"}

{"sheet":"Overzicht contracten","index":0,"n_rows":57,"n_cols":7,"rows_kept":57,"cut":false,"hidden":false,"merged":[]}
["Abc","Firma","Ordernr.","Dossiernr.","Omschrijving","Frequentie","Locatie"]
[]
["A","AED shop",267550,"AED-01.PZ ","Onderhouds- en ondersteuningswerkzaamheden voor Lifepack defibrilator","1x per jaar","OG"]
[null,"Agentschap Telecom",263033,"AGE-01.PZ","Portofoonverkeer","N.v.t.","OG"]
[null,"AIB Vinçotte NL BV",265286,"AIB-01.PZ","Onderhouds- en ondersteuningswerkzaamheden m.b.t. veiligheidsinspecties en keuringen","1x per jaar","MD + AM + OG + PA"]
[null,"Altena Cleaning BV",264559,"ALT-01.PZ","Onderhoud 17 LBK + leveren 1x V-snaren (69 afzuigventilatoren)","1x per jaar LBK","MD + AM + OG"]
[null,null,null,null,"Vervangen vlakfilters (Camfill)","4x per jaar","MD + AM + OG"]
[null,"AMPS bvba",265247,"AMP-01.PZ","Preventief + correctief (storings) onderhoud geluid- en lichtinstallatie","2x per jaar, enkele 1x","MD + OG"]
[null,"ANPI",null,"ANP-01.PZ","Periodieke inspectie sprinklerinstallatie","1x  per jaar","MD + AM + OG"]
[null,"Aqua Compleet",269718,"AQU-01.PZ","Onderhoud aquarium","1x per 6 weken","OG"]
["B","BAM Infratechniek Zuid bv",268906,"BAM-01.PZ","Grote storingen aan de terreininfra","Op storingsbasis","PA"]
[null,"Boon Edam NL BV",267698,"BOO-01.PZ","Onderhouds- en ondersteuningswerkzaamheden automatische deuren","1x per jaar","MD"]
[null,"Bowltech International BV",272452,null,"Preventief onderhoud/controle bowlingmachines","2x per jaar","MD"]
[null,"BTL Realisatie BV",279277,"BTL-01.PZ","Onderhouds- en ondersteuningswerkzaamheden van het 'groen'","Volgens bestek","PA"]
["C","Creemers Compressors b.v.",264637,"CRE-01.PZ","Onderhouds- en ondersteuningswerkzaamheden persluchtcompressor","1x per jaar","AM + OG"]
[null,"Connect and Play",267564,"CON-01.PZ",null,"N.v.t."]
[null,"CTS Systemtechnik GmbH",null,"CTS-01.PZ","Onderhouds- en ondersteuningswerkzaamheden Wild Waterbaan","1x per jaar","AM"]
["D","Schoorsteentechniek Denito",267589,"DEN-02.PZ","Reinigen 723 schoorstenen ","1/3 deel per jaar","CO"]
[null,"Duijvelaar Pompen",265215,"DUI-01.PZ","Periodiek onderhoud drukverhogings- en onderbrekingsinstallatie","2x per jaar","MD + PA"]
["E","Endress + Hauser BV",267571,"END-01.PZ","Onderhouds- en ondersteuningswerkzaamheden debietmeter & ijking","1x per jaar","PA"]
[null,"Eurosupply Hoogwerksystemen BV",266309,"EUR-02.PZ","Onderhoud en (inspectie/)keuring hoogwerker","1x per jaar","PA"]
["F","Frama NL BV",263035,"FRA-01.PZ","Onderhoud frankeermachine","1x per jaar","MD"]
["G","G4S Security Systems",267537,"G4S-01.PZ","Onderhouds- en ondersteuningswerkzaamheden inbraakbeveiliging ","1x per jaar","MD"]
[null,"G4S Security Systems",267536,"G4S-02.PZ","Onderhouds- en ondersteuningswerkzaamheden inbraakbeveiliging ","1x per jaar","OG"]
[null,"Geesink BV",263036,"GEE-01.PZ","Preventief onderhoud perscontainer (afvalverdichter)","1x per jaar","PA"]
[null,"Growinfo BvBa",265308,"GRO-01.PZ","Bemestingsadvies en grondanalyse","1x per jaar","MD + AM"]
["H","Hellebrekers Technieken",272448,null,"Jaarlijks onderhoud zwembadinstallatie + storingen","1x per jaar","AM"]
["J","Justkar Seaing Company",272449,null,"Preventief onderhoud en service aan pompinstallaties","1x 4 dagen ","AM"]
["K","Kemkens Gasservice bv",272751,"KEM-01.PZ","Onderhouds- en ondersteuningswerkzaamheden CV-cottages t/m 19 jaar (muv Radson)","1x per jaar","CO"]
[null,"Kemkens Gasservice bv",null,"KEM-03.PZ","Onderhouds- en ondersteuningswerkzaamheden CV installaties centrumgebouwen","1x per jaar","MD + AM + OG"]
[null,"Van Keulen Beheersmaatschappij",263039,"KEU-01.PZ","Onderhoud en inspectie 2 sanitair gebouwen","2x per jaar","OG"]
[null,"Kobra Fire Equipment b.v.",264820,"KOB-01.PZ","Onderhouds- en ondersteuningswerkzaamheden brandmeld- en ontruimingsalarminstallatie","1x per jaar","MD + AM + OG"]
["L","Labo Derva NV",263037,"LAB-01.PZ","Controle water/vloer & rapportage (bemonstering)","12x per jaar","MD + AM + PA + CO"]
[null,"Lagerwey Bestrijding en Bescherming",265202,"LAG-01.PZ","Onderhouds- en ondersteuningswerkzaamheden ongediertebeschrijding","8x per jaar","MD + AM + OG + PA"]
[null,"Landustrie Sneek",265260,"LAN-01.PZ","Controleren 1 of 2 rioolpompen","1x per jaar","PA"]
[null,"Liftinstituut",263038,"LIF-01.PZ","Keuring liften","1x per 1,5 jaar","MD"]
["M","Mainfra",264632,"MAI-01.PZ","Onderhouds- en ondersteuningswerkzaamheden controle gasleidingnet","1x per 5 jaar","PA"]
["N","Nijhof",264842,"NIJ-01.PZ","Onderhouds- en ondersteuningswerkzaamheden biologische bestrijding spint","4x per jaar","MD + AM"]
["P","Poly Products B.V.",null,"POL-01.PZ","Onderhouds- en ondersteuningswerkzaamheden turbotunnel","1x per jaar","AM"]
["R","Regeltechniek 2000 B.V.",264730,"REG-01.PZ","Onderhouds- en ondersteuningswerkzaamheden Regelsysteem RWK-Zwembad (GBS?)","2x per jaar","MD + AM"]
[null,"Rick Smits Total Green",272734,"RIC-01.PZ","Snoeiwerk","2x per jaar","MD + AM"]
[null,"RTM Inspecties en Advisering",264882,"RTM-01.PZ","Controle e-net conform NEN 3140 en thermografische inspectie laagspanningsinstallatie","1x per jaar","MD + AM + OG + PA + CO"]
["S","Sas van den Bosch BV",269384,"BOS-01.PZ","Onderhouds- en ondersteuningswerkzaamheden voor 21 airconditoninginstallaties","1x per jaar","MD + OG"]
[null,"Sentavi",267837,"SEN-01.PZ","Onderhouds- en ondersteuningswerkzaamheden voor de sunshowers ","1x per jaar","CO"]
[null,"Siemens Nederland NV",267189,"SIE-02.PZ","Doormelding meldsysteem brandweer","N.v.t.","MD"]
[null,"Silliker BV - Conex",264641,"SIL-01.PZ","Onderhouds- en ondersteuningswerkzaamheden voor afvalwateronderzoek","3x per jaar","PA"]
[null,"Smeba Brandbeveiliging",266761,"SME-01.PZ","Onderhouds- en ondersteuningswerkzaamheden brandbeveiligingsapparatuur","1x per jaar","MD + AM + OG + CO"]
[null,"Snoey Handelsonderneming",264634,"SNO-01.PZ","Preventief onderhoud- en ondersteuningswerkzaamheden noodaggregaat","1x per jaar","PA"]
[null,"Spie Nederland bv",269383,"SPI-02.PZ","Onderhoud sprinkler + gasdetectie","1x per jaar","MD + AM + OG + PA"]
["T","ThyssenKrupp Liften BV",267787,"THY-01.PZ","Onderhoud personenlift","4x per jaar","MD"]
[null,null,null,null,"Onderhoud goederenlift","2x per jaar","MD"]
["V","Van der Velden Rioleringsbeheer Buren",266321,"VEL-02.PZ","Preventief reinigen binnenriolering","1x per jaar","MD + AM + OG"]
[null,"Van der Velden Rioleringsbeheer Buren",null,null,"Preventief reinigen olieafscheider tankplaats","1x per jaar","PA"]
[null,"Van der Velden Rioleringsbeheer Buren",null,null,"Olie- en vetafscheider keukens en lediging pompput","4x per jaar","MD + PA + OG"]
[null,"Van der Velden Rioleringsbeheer Buren",null,null,"Reinigen cascade en pompput","1x per jaar","PA"]
["W","WPS Parking Systems B.V.",267843,"WPS-01.PZ","Onderhouds- en ondersteuningswerkzaamheden voor tourniquettes","1x per jaar","AM"]
["Z","Zondag Zonnevakmensen bv",267541,"ZON-01.PZ","Onderhouds- en ondersteuningswerkzaamheden voor 14 snelbruiners","1x per jaar","CO"]

{"sheet":"Schema","index":1,"n_rows":103,"n_cols":11,"rows_kept":103,"cut":false,"hidden":false,"merged":[]}
[null,"Firma","Gebeld?","Datum komst","Weeknr.","Geweest?","Rapport ontvangen?","Openstaande acties","Prioriteit","Acties uitgevoerd?","Controle uitgevoerd?"]
["Datum:",{"$f":"TODAY()","v":"2012-12-18"}]
["Week",{"$f":"WEEKNUM(B2)","v":51}]
["Inspectie"]
[null,"AIB Vinçotte NL BV - Hijsgereedschappen/ladders",{"$f":"IF(Overzicht[[#This Row],[Datum komst]],\"Ja\",\"Nee\")","v":"Nee"},null,{"$f":"IF(D5,WEEKNUM(D5,1),\"\")","v":""},null,null,"Enkele punten"]
[null,"AIB Vinçotte NL BV - Bliksembeveiliging",{"$f":"IF(Overzicht[[#This Row],[Datum komst]],\"Ja\",\"Nee\")","v":"Nee"},null,{"$f":"IF(D6,WEEKNUM(D6,1),\"\")","v":""}]
[null,"AIB Vinçotte NL BV - Turbo tunnel",{"$f":"IF(Overzicht[[#This Row],[Datum komst]],\"Ja\",\"Nee\")","v":"Nee"},null,{"$f":"IF(D7,WEEKNUM(D7,1),\"\")","v":""}]
[null,"AIB Vinçotte NL BV - Speeltoestellen",{"$f":"IF(Overzicht[[#This Row],[Datum komst]],\"Ja\",\"Nee\")","v":"Nee"},null,{"$f":"IF(D8,WEEKNUM(D8,1),\"\")","v":""}]
[null,"AIB Vinçotte NL BV - Midgetgolf indoor",{"$f":"IF(Overzicht[[#This Row],[Datum komst]],\"Ja\",\"Nee\")","v":"Nee"},null,""]
[null,"AIB Vinçotte NL BV - Luchtkussen Factory",{"$f":"IF(Overzicht[[#This Row],[Datum komst]],\"Ja\",\"Nee\")","v":"Ja"},"2012-12-14",50]
[null,"AIB Vinçotte NL BV - High adventure",{"$f":"IF(Overzicht[[#This Row],[Datum komst]],\"Ja\",\"Nee\")","v":"Nee"},null,""]
[null,"AIB Vinçotte NL BV - Minicars",{"$f":"IF(Overzicht[[#This Row],[Datum komst]],\"Ja\",\"Nee\")","v":"Nee"},null,""]
[null,"ANPI",{"$f":"IF(Overzicht[[#This Row],[Datum komst]],\"Ja\",\"Nee\")","v":"Nee"},null,"",null,null,"IPC0 lijst"]
[null,"Endress + Hauser BV",{"$f":"IF(Overzicht[[#This Row],[Datum komst]],\"Ja\",\"Nee\")","v":"Nee"},null,""]
[null,"Growinfo BvBa",{"$f":"IF(Overzicht[[#This Row],[Datum komst]],\"Ja\",\"Nee\")","v":"Nee"},null,""]
[null,"Kobra Fire Equipment b.v.",{"$f":"IF(Overzicht[[#This Row],[Datum komst]],\"Ja\",\"Nee\")","v":"Ja"},"2012-11-04",45]
[null,"Labo Derva NV",{"$f":"IF(Overzicht[[#This Row],[Datum komst]],\"Ja\",\"Nee\")","v":"Nee"},null,""]
[null,"Liftinstituut",{"$f":"IF(Overzicht[[#This Row],[Datum komst]],\"Ja\",\"Nee\")","v":"Nee"},null,""]
[null,"Mainfra ",{"$f":"IF(Overzicht[[#This Row],[Datum komst]],\"Ja\",\"Nee\")","v":"Nee"},null,""]
[null,"Poly Products B.V.",{"$f":"IF(Overzicht[[#This Row],[Datum komst]],\"Ja\",\"Nee\")","v":"Nee"},null,""]
[null,"Regeltechniek 2000 B.V.",{"$f":"IF(Overzicht[[#This Row],[Datum komst]],\"Ja\",\"Nee\")","v":"Ja"},"2013-03-01",9]
[null,"RTM Inspecties en Advisering - NEN3140",{"$f":"IF(Overzicht[[#This Row],[Datum komst]],\"Ja\",\"Nee\")","v":"Nee"},null,""]
[null,"RTM Inspecties en Advisering - Thermografie",{"$f":"IF(Overzicht[[#This Row],[Datum komst]],\"Ja\",\"Nee\")","v":"Nee"},null,""]
[null,"Silliker BV - Conex",{"$f":"IF(Overzicht[[#This Row],[Datum komst]],\"Ja\",\"Nee\")","v":"Nee"},null,""]
[null,"Smeba Brandbeveiliging",{"$f":"IF(Overzicht[[#This Row],[Datum komst]],\"Ja\",\"Nee\")","v":"Nee"},null,""]
[null,null,null,null,""]
[null,null,null,null,""]
["Combinatie inspectie + onderhoud",null,null,null,""]
[null,"Schoorsteentechniek Denito",{"$f":"IF(Overzicht[[#This Row],[Datum komst]],\"Ja\",\"Nee\")","v":"Nee"},null,""]
[null,"Eurosupply Hoogwerksystemen BV",{"$f":"IF(Overzicht[[#This Row],[Datum komst]],\"Ja\",\"Nee\")","v":"Ja"},"2012-05-01",18]
[null,"G4S Security Systems - MD",{"$f":"IF(Overzicht[[#This Row],[Datum komst]],\"Ja\",\"Nee\")","v":"Ja"},"2012-11-22",47]
[null,"G4S Security Systems - OG",{"$f":"IF(Overzicht[[#This Row],[Datum komst]],\"Ja\",\"Nee\")","v":"Nee"},null,""]
[null,"Kemkens Gasservice bv - CV CO",{"$f":"IF(Overzicht[[#This Row],[Datum komst]],\"Ja\",\"Nee\")","v":"Nee"},null,""]
[null,"Kemkens Gasservice bv - CV MD, AM, OG",{"$f":"IF(Overzicht[[#This Row],[Datum komst]],\"Ja\",\"Nee\")","v":"Ja"},"2012-12-10",50]
[null,"Lagerwey Bestrijding en Bescherming",{"$f":"IF(Overzicht[[#This Row],[Datum komst]],\"Ja\",\"Nee\")","v":"Nee"},null,""]
[null,"Nijhof",{"$f":"IF(Overzicht[[#This Row],[Datum komst]],\"Ja\",\"Nee\")","v":"Nee"},null,""]
[null,"Sas van den Bosch BV",{"$f":"IF(Overzicht[[#This Row],[Datum komst]],\"Ja\",\"Nee\")","v":"Nee"},null,""]
[null,"Spie Nederland bv - Sprinkler onderhoud",{"$f":"IF(Overzicht[[#This Row],[Datum komst]],\"Ja\",\"Nee\")","v":"Nee"},null,""]
[null,"Spie Nederland bv - Gasdetectie",{"$f":"IF(Overzicht[[#This Row],[Datum komst]],\"Ja\",\"Nee\")","v":"Nee"},null,""]
[null,null,null,null,""]
[null,null,null,null,""]
["Onderhoud",null,null,null,""]
[null,"AED shop",{"$f":"IF(Overzicht[[#This Row],[Datum komst]],\"Ja\",\"Nee\")","v":"Nee"},null,""]
[null,"Agentschap Telecom",{"$f":"IF(Overzicht[[#This Row],[Datum komst]],\"Ja\",\"Nee\")","v":"Nee"},null,""]
[null,"Altena Cleaning BV",{"$f":"IF(Overzicht[[#This Row],[Datum komst]],\"Ja\",\"Nee\")","v":"Ja"},"2013-05-06",19]
[null,"AMPS bvba",{"$f":"IF(Overzicht[[#This Row],[Datum komst]],\"Ja\",\"Nee\")","v":"Nee"},null,""]
[null,"Aqua Compleet",{"$f":"IF(Overzicht[[#This Row],[Datum komst]],\"Ja\",\"Nee\")","v":"Ja"},"2013-04-01",14]
[null,"BAM Infratechniek Zuid bv",{"$f":"IF(Overzicht[[#This Row],[Datum komst]],\"Ja\",\"Nee\")","v":"Nee"},null,""]
[null,"Boon Edam NL BV",{"$f":"IF(Overzicht[[#This Row],[Datum komst]],\"Ja\",\"Nee\")","v":"Ja"},"2012-11-27",48]
[null,"Bowltech International BV",{"$f":"IF(Overzicht[[#This Row],[Datum komst]],\"Ja\",\"Nee\")","v":"Ja"},"2013-07-11",28]
[null,"BTL Realisatie BV",{"$f":"IF(Overzicht[[#This Row],[Datum komst]],\"Ja\",\"Nee\")","v":"Nee"},null,""]
[null,"Creemers Compressors b.v.",{"$f":"IF(Overzicht[[#This Row],[Datum komst]],\"Ja\",\"Nee\")","v":"Ja"},"2013-07-08",28]
[null,"Connect and Play",{"$f":"IF(Overzicht[[#This Row],[Datum komst]],\"Ja\",\"Nee\")","v":"Nee"},null,""]
[null,"CTS Systemtechnik GmbH",{"$f":"IF(Overzicht[[#This Row],[Datum komst]],\"Ja\",\"Nee\")","v":"Ja"},"2013-02-14",7]
[null,"Duijvelaar Pompen",{"$f":"IF(Overzicht[[#This Row],[Datum komst]],\"Ja\",\"Nee\")","v":"Ja"},"2013-08-07",32]
[null,"Frama NL BV",{"$f":"IF(Overzicht[[#This Row],[Datum komst]],\"Ja\",\"Nee\")","v":"Nee"},null,""]
[null,"Geesink BV",{"$f":"IF(Overzicht[[#This Row],[Datum komst]],\"Ja\",\"Nee\")","v":"Ja"},"2012-11-29",48]
[null,"Hellebrekers Technieken - Inspectie glijbanen/speeltoestellen AM",{"$f":"IF(Overzicht[[#This Row],[Datum komst]],\"Ja\",\"Nee\")","v":"Ja"},"2012-12-03",49]
[null,"Hellebrekers Technieken - Kathodische bescherming",{"$f":"IF(Overzicht[[#This Row],[Datum komst]],\"Ja\",\"Nee\")","v":"Ja"},"2012-12-03",49]
[null,"Justkar Seaing Company",{"$f":"IF(Overzicht[[#This Row],[Datum komst]],\"Ja\",\"Nee\")","v":"Nee"},null,""]
[null,"Van Keulen Beheersmaatschappij",{"$f":"IF(Overzicht[[#This Row],[Datum komst]],\"Ja\",\"Nee\")","v":"Nee"},null,""]
[null,"Landustrie Sneek",{"$f":"IF(Overzicht[[#This Row],[Datum komst]],\"Ja\",\"Nee\")","v":"Nee"},null,""]
[null,"Rick Smits Total Green",{"$f":"IF(Overzicht[[#This Row],[Datum komst]],\"Ja\",\"Nee\")","v":"Nee"},null,""]
[null,"Sentavi",{"$f":"IF(Overzicht[[#This Row],[Datum komst]],\"Ja\",\"Nee\")","v":"Nee"},null,""]
[null,"Siemens Nederland NV",{"$f":"IF(Overzicht[[#This Row],[Datum komst]],\"Ja\",\"Nee\")","v":"Nee"},null,""]
[null,"Snoey Handelsonderneming",{"$f":"IF(Overzicht[[#This Row],[Datum komst]],\"Ja\",\"Nee\")","v":"Nee"},null,""]
[null,"ThyssenKrupp Liften BV",{"$f":"IF(Overzicht[[#This Row],[Datum komst]],\"Ja\",\"Nee\")","v":"Nee"},null,""]
[null,"Van der Velden Rioleringsbeheer Buren - Binnenriolering",{"$f":"IF(Overzicht[[#This Row],[Datum komst]],\"Ja\",\"Nee\")","v":"Nee"},null,""]
[null,"Van der Velden Rioleringsbeheer Buren - Olieafscheider tankplaats",{"$f":"IF(Overzicht[[#This Row],[Datum komst]],\"Ja\",\"Nee\")","v":"Nee"},null,""]
[null,"Van der Velden Rioleringsbeheer Buren - Olie- en vetafscheider keukens en lediging pompput",{"$f":"IF(Overzicht[[#This Row],[Datum komst]],\"Ja\",\"Nee\")","v":"Ja"},"2012-12-07",49]
[null,"Van der Velden Rioleringsbeheer Buren - Cascade en pompput",{"$f":"IF(Overzicht[[#This Row],[Datum komst]],\"Ja\",\"Nee\")","v":"Nee"},null,""]
[null,"WPS Parking Systems B.V.",{"$f":"IF(Overzicht[[#This Row],[Datum komst]],\"Ja\",\"Nee\")","v":"Nee"},null,""]
[null,"Zondag Zonnevakmensen bv",{"$f":"IF(Overzicht[[#This Row],[Datum komst]],\"Ja\",\"Nee\")","v":"Nee"},null,{"$f":"IF(D73,WEEKNUM(D73,1),\"\")","v":""}]
[null,null,null,null,""]
[null,null,null,null,""]
["Albron",null,null,null,""]
[null,"Tessu Systems",{"$f":"IF(Overzicht[[#This Row],[Datum komst]],\"Ja\",\"Nee\")","v":"Nee"},null,""]
[null,"Spie Nederland bv - Blusinstallaties afzuigkappen",{"$f":"IF(Overzicht[[#This Row],[Datum komst]],\"Ja\",\"Nee\")","v":"Nee"},null,""]
[null,null,null,null,""]
[null,null,null,null,""]
["Meerjaren",null,null,null,""]
[null,"KIWA keuring (6 jaarlijks)",{"$f":"IF(Overzicht[[#This Row],[Datum komst]],\"Ja\",\"Nee\")","v":"Nee"},null,""]
[null,"Mainfra (5 jaarlijks) --> staat ook bij inspectie",{"$f":"IF(Overzicht[[#This Row],[Datum komst]],\"Ja\",\"Nee\")","v":"Nee"},null,""]
[null,null,null,null,""]
[null,null,null,null,""]
[null,null,null,null,""]
[null,null,null,null,""]
[null,null,null,null,""]
[null,null,null,null,""]
[null,null,null,null,""]
[null,null,null,null,""]
[null,null,null,null,""]
[null,null,null,null,""]
[null,null,null,null,""]
[null,null,null,null,""]
[null,null,null,null,""]
[null,null,null,null,""]
[null,null,null,null,""]
[null,null,null,null,""]
[null,null,null,null,""]
[null,null,null,null,{"$f":"IF(D101,WEEKNUM(D101,1),\"\")","v":""}]
[null,null,null,null,""]
[null,null,null,null,""]

{"sheet":"Openstaande acties","index":2,"n_rows":125,"n_cols":4,"rows_kept":125,"cut":false,"hidden":false,"merged":[]}
[null,"Firma",null,"Openstaande acties"]
[{"$f":"Schema!A4","v":"Inspectie"},null,null,{"$f":"Schema!H4","v":0}]
[{"$f":"Schema!A5","v":0},{"$f":"Schema!B5","v":"AIB Vinçotte NL BV - Hijsgereedschappen/ladders"},null,{"$f":"Schema!H5","v":"Enkele punten"}]
[{"$f":"Schema!A6","v":0},{"$f":"Schema!B6","v":"AIB Vinçotte NL BV - Bliksembeveiliging"},null,{"$f":"Schema!H6","v":0}]
[{"$f":"Schema!A7","v":0},{"$f":"Schema!B7","v":"AIB Vinçotte NL BV - Turbo tunnel"},null,{"$f":"Schema!H7","v":0}]
[{"$f":"Schema!A8","v":0},{"$f":"Schema!B8","v":"AIB Vinçotte NL BV - Speeltoestellen"},null,{"$f":"Schema!H8","v":0}]
[{"$f":"Schema!A9","v":0},{"$f":"Schema!B9","v":"AIB Vinçotte NL BV - Midgetgolf indoor"},null,{"$f":"Schema!H9","v":0}]
[{"$f":"Schema!A10","v":0},{"$f":"Schema!B10","v":"AIB Vinçotte NL BV - Luchtkussen Factory"},null,{"$f":"Schema!H10","v":0}]
[{"$f":"Schema!A11","v":0},{"$f":"Schema!B11","v":"AIB Vinçotte NL BV - High adventure"},null,{"$f":"Schema!H11","v":0}]
[{"$f":"Schema!A12","v":0},{"$f":"Schema!B12","v":"AIB Vinçotte NL BV - Minicars"},null,{"$f":"Schema!H12","v":0}]
[{"$f":"Schema!A13","v":0},{"$f":"Schema!B13","v":"ANPI"},null,{"$f":"Schema!H13","v":"IPC0 lijst"}]
[{"$f":"Schema!A14","v":0},{"$f":"Schema!B14","v":"Endress + Hauser BV"},null,{"$f":"Schema!H14","v":0}]
[{"$f":"Schema!A15","v":0},{"$f":"Schema!B15","v":"Growinfo BvBa"},null,{"$f":"Schema!H15","v":0}]
[{"$f":"Schema!A16","v":0},{"$f":"Schema!B16","v":"Kobra Fire Equipment b.v."},null,{"$f":"Schema!H16","v":0}]
[{"$f":"Schema!A17","v":0},{"$f":"Schema!B17","v":"Labo Derva NV"},null,{"$f":"Schema!H17","v":0}]
[{"$f":"Schema!A18","v":0},{"$f":"Schema!B18","v":"Liftinstituut"},null,{"$f":"Schema!H18","v":0}]
[{"$f":"Schema!A19","v":0},{"$f":"Schema!B19","v":"Mainfra "},null,{"$f":"Schema!H19","v":0}]
[{"$f":"Schema!A20","v":0},{"$f":"Schema!B20","v":"Poly Products B.V."},null,{"$f":"Schema!H20","v":0}]
[{"$f":"Schema!A21","v":0},{"$f":"Schema!B21","v":"Regeltechniek 2000 B.V."},null,{"$f":"Schema!H21","v":0}]
[{"$f":"Schema!A22","v":0},{"$f":"Schema!B22","v":"RTM Inspecties en Advisering - NEN3140"},null,{"$f":"Schema!H22","v":0}]
[{"$f":"Schema!A23","v":0},{"$f":"Schema!B23","v":"RTM Inspecties en Advisering - Thermografie"},null,{"$f":"Schema!H23","v":0}]
[{"$f":"Schema!A24","v":0},{"$f":"Schema!B24","v":"Silliker BV - Conex"},null,{"$f":"Schema!H24","v":0}]
[{"$f":"Schema!A25","v":0},{"$f":"Schema!B25","v":"Smeba Brandbeveiliging"},null,{"$f":"Schema!H25","v":0}]
[{"$f":"Schema!A26","v":0},{"$f":"Schema!B26","v":0},null,{"$f":"Schema!H26","v":0}]
[{"$f":"Schema!A27","v":0},{"$f":"Schema!B27","v":0},null,{"$f":"Schema!H27","v":0}]
[{"$f":"Schema!A28","v":"Combinatie inspectie + onderhoud"},{"$f":"Schema!B28","v":0},null,{"$f":"Schema!H28","v":0}]
[{"$f":"Schema!A29","v":0},{"$f":"Schema!B29","v":"Schoorsteentechniek Denito"},null,{"$f":"Schema!H29","v":0}]
[{"$f":"Schema!A30","v":0},{"$f":"Schema!B30","v":"Eurosupply Hoogwerksystemen BV"},null,{"$f":"Schema!H30","v":0}]
[{"$f":"Schema!A31","v":0},{"$f":"Schema!B31","v":"G4S Security Systems - MD"},null,{"$f":"Schema!H31","v":0}]
[{"$f":"Schema!A32","v":0},{"$f":"Schema!B32","v":"G4S Security Systems - OG"},null,{"$f":"Schema!H32","v":0}]
[{"$f":"Schema!A33","v":0},{"$f":"Schema!B33","v":"Kemkens Gasservice bv - CV CO"},null,{"$f":"Schema!H33","v":0}]
[{"$f":"Schema!A34","v":0},{"$f":"Schema!B34","v":"Kemkens Gasservice bv - CV MD, AM, OG"},null,{"$f":"Schema!H34","v":0}]
[{"$f":"Schema!A35","v":0},{"$f":"Schema!B35","v":"Lagerwey Bestrijding en Bescherming"},null,{"$f":"Schema!H35","v":0}]
[{"$f":"Schema!A36","v":0},{"$f":"Schema!B36","v":"Nijhof"},null,{"$f":"Schema!H36","v":0}]
[{"$f":"Schema!A37","v":0},{"$f":"Schema!B37","v":"Sas van den Bosch BV"},null,{"$f":"Schema!H37","v":0}]
[{"$f":"Schema!A38","v":0},{"$f":"Schema!B38","v":"Spie Nederland bv - Sprinkler onderhoud"},null,{"$f":"Schema!H38","v":0}]
[{"$f":"Schema!A39","v":0},{"$f":"Schema!B39","v":"Spie Nederland bv - Gasdetectie"},null,{"$f":"Schema!H39","v":0}]
[{"$f":"Schema!A40","v":0},{"$f":"Schema!B40","v":0},null,{"$f":"Schema!H40","v":0}]
[{"$f":"Schema!A41","v":0},{"$f":"Schema!B41","v":0},null,{"$f":"Schema!H41","v":0}]
[{"$f":"Schema!A42","v":"Onderhoud"},{"$f":"Schema!B42","v":0},null,{"$f":"Schema!H42","v":0}]
[{"$f":"Schema!A43","v":0},{"$f":"Schema!B43","v":"AED shop"},null,{"$f":"Schema!H43","v":0}]
[{"$f":"Schema!A44","v":0},{"$f":"Schema!B44","v":"Agentschap Telecom"},null,{"$f":"Schema!H44","v":0}]
[{"$f":"Schema!A45","v":0},{"$f":"Schema!B45","v":"Altena Cleaning BV"},null,{"$f":"Schema!H45","v":0}]
[{"$f":"Schema!A46","v":0},{"$f":"Schema!B46","v":"AMPS bvba"},null,{"$f":"Schema!H46","v":0}]
[{"$f":"Schema!A47","v":0},{"$f":"Schema!B47","v":"Aqua Compleet"},null,{"$f":"Schema!H47","v":0}]
[{"$f":"Schema!A48","v":0},{"$f":"Schema!B48","v":"BAM Infratechniek Zuid bv"},null,{"$f":"Schema!H48","v":0}]
[{"$f":"Schema!A49","v":0},{"$f":"Schema!B49","v":"Boon Edam NL BV"},null,{"$f":"Schema!H49","v":0}]
[{"$f":"Schema!A50","v":0},{"$f":"Schema!B50","v":"Bowltech International BV"},null,{"$f":"Schema!H50","v":0}]
[{"$f":"Schema!A51","v":0},{"$f":"Schema!B51","v":"BTL Realisatie BV"},null,{"$f":"Schema!H51","v":0}]
[{"$f":"Schema!A52","v":0},{"$f":"Schema!B52","v":"Creemers Compressors b.v."},null,{"$f":"Schema!H52","v":0}]
[{"$f":"Schema!A53","v":0},{"$f":"Schema!B53","v":"Connect and Play"},null,{"$f":"Schema!H53","v":0}]
[{"$f":"Schema!A54","v":0},{"$f":"Schema!B54","v":"CTS Systemtechnik GmbH"},null,{"$f":"Schema!H54","v":0}]
[{"$f":"Schema!A55","v":0},{"$f":"Schema!B55","v":"Duijvelaar Pompen"},null,{"$f":"Schema!H55","v":0}]
[{"$f":"Schema!A56","v":0},{"$f":"Schema!B56","v":"Frama NL BV"},null,{"$f":"Schema!H56","v":0}]
[{"$f":"Schema!A57","v":0},{"$f":"Schema!B57","v":"Geesink BV"},null,{"$f":"Schema!H57","v":0}]
[{"$f":"Schema!A58","v":0},{"$f":"Schema!B58","v":"Hellebrekers Technieken - Inspectie glijbanen/speeltoestellen AM"},null,{"$f":"Schema!H58","v":0}]
[{"$f":"Schema!A59","v":0},{"$f":"Schema!B59","v":"Hellebrekers Technieken - Kathodische bescherming"},null,{"$f":"Schema!H59","v":0}]
[{"$f":"Schema!A60","v":0},{"$f":"Schema!B60","v":"Justkar Seaing Company"},null,{"$f":"Schema!H60","v":0}]
[{"$f":"Schema!A61","v":0},{"$f":"Schema!B61","v":"Van Keulen Beheersmaatschappij"},null,{"$f":"Schema!H61","v":0}]
[{"$f":"Schema!A62","v":0},{"$f":"Schema!B62","v":"Landustrie Sneek"},null,{"$f":"Schema!H62","v":0}]
[{"$f":"Schema!A63","v":0},{"$f":"Schema!B63","v":"Rick Smits Total Green"},null,{"$f":"Schema!H63","v":0}]
[{"$f":"Schema!A64","v":0},{"$f":"Schema!B64","v":"Sentavi"},null,{"$f":"Schema!H64","v":0}]
[{"$f":"Schema!A65","v":0},{"$f":"Schema!B65","v":"Siemens Nederland NV"},null,{"$f":"Schema!H65","v":0}]
[{"$f":"Schema!A66","v":0},{"$f":"Schema!B66","v":"Snoey Handelsonderneming"},null,{"$f":"Schema!H66","v":0}]
[{"$f":"Schema!A67","v":0},{"$f":"Schema!B67","v":"ThyssenKrupp Liften BV"},null,{"$f":"Schema!H67","v":0}]
[{"$f":"Schema!A68","v":0},{"$f":"Schema!B68","v":"Van der Velden Rioleringsbeheer Buren - Binnenriolering"},null,{"$f":"Schema!H68","v":0}]
[{"$f":"Schema!A69","v":0},{"$f":"Schema!B69","v":"Van der Velden Rioleringsbeheer Buren - Olieafscheider tankplaats"},null,{"$f":"Schema!H69","v":0}]
[{"$f":"Schema!A70","v":0},{"$f":"Schema!B70","v":"Van der Velden Rioleringsbeheer Buren - Olie- en vetafscheider keukens en lediging pompput"},null,{"$f":"Schema!H70","v":0}]
[{"$f":"Schema!A71","v":0},{"$f":"Schema!B71","v":"Van der Velden Rioleringsbeheer Buren - Cascade en pompput"},null,{"$f":"Schema!H71","v":0}]
[{"$f":"Schema!A72","v":0},{"$f":"Schema!B72","v":"WPS Parking Systems B.V."},null,{"$f":"Schema!H72","v":0}]
[{"$f":"Schema!A73","v":0},{"$f":"Schema!B73","v":"Zondag Zonnevakmensen bv"},null,{"$f":"Schema!H73","v":0}]
[{"$f":"Schema!A74","v":0},{"$f":"Schema!B74","v":0},null,{"$f":"Schema!H74","v":0}]
[{"$f":"Schema!A75","v":0},{"$f":"Schema!B75","v":0},null,{"$f":"Schema!H75","v":0}]
[{"$f":"Schema!A76","v":"Albron"},{"$f":"Schema!B76","v":0},null,{"$f":"Schema!H76","v":0}]
[{"$f":"Schema!A77","v":0},{"$f":"Schema!B77","v":"Tessu Systems"},null,{"$f":"Schema!H77","v":0}]
[{"$f":"Schema!A78","v":0},{"$f":"Schema!B78","v":"Spie Nederland bv - Blusinstallaties afzuigkappen"},null,{"$f":"Schema!H78","v":0}]
[{"$f":"Schema!A79","v":0},{"$f":"Schema!B79","v":0},null,{"$f":"Schema!H79","v":0}]
[{"$f":"Schema!A80","v":0},{"$f":"Schema!B80","v":0},null,{"$f":"Schema!H80","v":0}]
[{"$f":"Schema!A81","v":"Meerjaren"},{"$f":"Schema!B81","v":0},null,{"$f":"Schema!H81","v":0}]
[{"$f":"Schema!A82","v":0},{"$f":"Schema!B82","v":"KIWA keuring (6 jaarlijks)"},null,{"$f":"Schema!H82","v":0}]
[{"$f":"Schema!A83","v":0},{"$f":"Schema!B83","v":"Mainfra (5 jaarlijks) --> staat ook bij inspectie"},null,{"$f":"Schema!H83","v":0}]
[{"$f":"Schema!A84","v":0},{"$f":"Schema!B84","v":0},null,{"$f":"Schema!H84","v":0}]
[{"$f":"Schema!A85","v":0},{"$f":"Schema!B85","v":0},null,{"$f":"Schema!H85","v":0}]
[{"$f":"Schema!A86","v":0},{"$f":"Schema!B86","v":0},null,{"$f":"Schema!H86","v":0}]
[{"$f":"Schema!A87","v":0},{"$f":"Schema!B87","v":0},null,{"$f":"Schema!H87","v":0}]
[{"$f":"Schema!A88","v":0},{"$f":"Schema!B88","v":0},null,{"$f":"Schema!H88","v":0}]
[{"$f":"Schema!A89","v":0},{"$f":"Schema!B89","v":0},null,{"$f":"Schema!H89","v":0}]
[{"$f":"Schema!A90","v":0},{"$f":"Schema!B90","v":0},null,{"$f":"Schema!H90","v":0}]
[{"$f":"Schema!A91","v":0},{"$f":"Schema!B91","v":0},null,{"$f":"Schema!H91","v":0}]
[{"$f":"Schema!A92","v":0},{"$f":"Schema!B92","v":0},null,{"$f":"Schema!H92","v":0}]
[{"$f":"Schema!A93","v":0},{"$f":"Schema!B93","v":0},null,{"$f":"Schema!H93","v":0}]
[null,{"$f":"Schema!B94","v":0},null,{"$f":"Schema!H94","v":0}]
[null,{"$f":"Schema!B95","v":0},null,{"$f":"Schema!H95","v":0}]
[null,{"$f":"Schema!B96","v":0},null,{"$f":"Schema!H96","v":0}]
[null,{"$f":"Schema!B97","v":0},null,{"$f":"Schema!H97","v":0}]
[null,{"$f":"Schema!B98","v":0},null,{"$f":"Schema!H98","v":0}]
[null,{"$f":"Schema!B99","v":0},null,{"$f":"Schema!H99","v":0}]
[null,{"$f":"Schema!B100","v":0},null,{"$f":"Schema!H100","v":0}]
[null,{"$f":"Schema!B101","v":0},null,{"$f":"Schema!H101","v":0}]
[null,{"$f":"Schema!B102","v":0},null,{"$f":"Schema!H102","v":0}]
[null,{"$f":"Schema!B103","v":0},null,{"$f":"Schema!H103","v":0}]
[null,{"$f":"Schema!B104","v":0},null,{"$f":"Schema!H104","v":0}]
[null,{"$f":"Schema!B105","v":0},null,{"$f":"Schema!H105","v":0}]
[null,{"$f":"Schema!B106","v":0},null,{"$f":"Schema!H106","v":0}]
[null,{"$f":"Schema!B107","v":0},null,{"$f":"Schema!H107","v":0}]
[null,{"$f":"Schema!B108","v":0},null,{"$f":"Schema!H108","v":0}]
[null,{"$f":"Schema!B109","v":0},null,{"$f":"Schema!H109","v":0}]
[null,{"$f":"Schema!B110","v":0},null,{"$f":"Schema!H110","v":0}]
[null,{"$f":"Schema!B111","v":0},null,{"$f":"Schema!H111","v":0}]
[null,{"$f":"Schema!B112","v":0},null,{"$f":"Schema!H112","v":0}]
[null,{"$f":"Schema!B113","v":0},null,{"$f":"Schema!H113","v":0}]
[null,{"$f":"Schema!B114","v":0},null,{"$f":"Schema!H114","v":0}]
[null,{"$f":"Schema!B115","v":0},null,{"$f":"Schema!H115","v":0}]
[null,{"$f":"Schema!B116","v":0},null,{"$f":"Schema!H116","v":0}]
[null,{"$f":"Schema!B117","v":0},null,{"$f":"Schema!H117","v":0}]
[null,{"$f":"Schema!B118","v":0},null,{"$f":"Schema!H118","v":0}]
[null,{"$f":"Schema!B119","v":0},null,{"$f":"Schema!H119","v":0}]
[null,{"$f":"Schema!B120","v":0},null,{"$f":"Schema!H120","v":0}]
[null,{"$f":"Schema!B121","v":0},null,{"$f":"Schema!H121","v":0}]
[null,{"$f":"Schema!B122","v":0},null,{"$f":"Schema!H122","v":0}]
[null,{"$f":"Schema!B123","v":0},null,{"$f":"Schema!H123","v":0}]
[null,{"$f":"Schema!B124","v":0},null,{"$f":"Schema!H124","v":0}]
[null,{"$f":"Schema!B125","v":0},null,{"$f":"Schema!H125","v":0}]
[null,{"$f":"Schema!B126","v":0},null,{"$f":"Schema!H126","v":0}]
[null,{"$f":"Schema!B127","v":0},null,{"$f":"Schema!H127","v":0}]

{"sheet":"Onderverdeling verpli, opt, rap","index":3,"n_rows":50,"n_cols":5,"rows_kept":50,"cut":false,"hidden":false,"merged":[]}
[]
[null,"Rapportages ontvangen van"]
[null,null,"Firma",null,"Onderdeel"]
[null,null,"AIB Vincotte",null,"Diverse keuringen en inspecties speeltoestellen"]
[null,null,"Altena Cleaning BV",null,"Luchtbehandeling"]
[null,null,"ANPI",null,"Sprinkler certificaat"]
[null,null,"Denito Schoorsteentechniek",null,"Schoorsteenvegen"]
[null,null,"Endress + Hauser BV",null,"Ijking debietmeter"]
[null,null,"Hellebrekers Technieken",null,"Zwembadinstallatie"]
[null,null,"Kobra Fire Equipment",null,"Brandmeldcentrale"]
[null,null,"Liftinstituut",null,"Keuring liften"]
[null,null,"RTM Inspecties en Advisering",null,"NEN 3140 en thermografie"]
[null,null,"Smeba Brandbeveiliging",null,"Blusmiddelen"]
[null,null,"Spie ",null,"Sprinkler onderhoud/gasdetectie"]
[]
[null,"Optioneel"]
[null,null,"Aspect",null,"Firma"]
[null,null,"Luchtbehandeling MD/AM/OG",null,"Altena"]
[]
[null,"Verplicht"]
[null,null,"Aspect",null,"Firma"]
[null,null,"NEN 3140",null,"RTM"]
[null,null,"Thermografie",null,"RTM"]
[null,null,"Sprinkler onderhoud",null,"Spie"]
[null,null,"Sprinkler certificaat",null,"ANPI"]
[null,null,"Hijsgereedschap/ladders",null,"AIB"]
[null,null,"Brandmeldcentrale",null,"Ansul (Kobra)"]
[null,null,"Gasdetectie",null,"Spie"]
[null,null,"Blusmiddelen",null,"Smeba"]
[null,null,"Bliksembeveiliging",null,"AIB"]
[null,null,"Inspectie glijbanen/speeltoestellen AM",null,"Hellebrekers"]
[null,null,"Turbo tunnel",null,"AIB"]
[null,null,"Speeltoestellen",null,"AIB"]
[null,null,"Midgetgolf indoor",null,"AIB"]
[null,null,"Luchtkussen factory",null,"AIB"]
[null,null,"High adventure",null,"AIB"]
[null,null,"Minicars",null,"AIB"]
[null,null,"Onderhoud CV MD/AM/OG",null,"Kemkens"]
[null,null,"Kathodische bescherming",null,"Hellebrekers"]
[null,null,"Schoorsteenvegen",null,"Denito"]
[null,null,"Ijking debietmeter",null,"Endress + Hauser BV"]
[null,null,"Liften",null,"Liftinstituut"]
[]
[]
[null,"Meerjaren","Kiwa keuring (1x per 6 jaar)",null,"Kiwa"]
[null,null,"Gasleidingnet (1x per 5 jaar)",null,"Mainfra"]
[]
[]
[null,"Albron","Reinigen afzuigkappen",null,"Tessu systems"]
[null,null,"Blusinstallaties afzuigkappen",null,"Spie"]